bitfinex/quotes_SOLUSD_20260119
["timestamp","ask_amount","ask_price","bid_price","bid_amount"]
[1768787408119,30.81062362,133.67,133.61,4.34190908]
[1768787408814,23.88131201,133.67,133.61,4.34190908]
[1768787409213,23.88131201,133.67,133.62,4.34190908]
[1768787409518,0.2,133.68,133.63,4.34190908]
[1768787409721,0.2,133.68,133.64,4.34190908]
[1768787410029,7.68069662,133.68,133.64,4.34190908]
[1768787411006,0.2,133.68,133.64,4.34190908]
[1768787411201,16.6,133.7,133.66,4.34190908]
[1768787411397,6.92931161,133.69,133.64,4.34190908]
[1768787411604,10.99954928,133.69,133.64,4.34190908]
[1768787411807,6.92931161,133.68,133.64,4.34190908]
[1768787412022,10.99954928,133.67,133.62,4.34190908]
[1768787412603,10.99954928,133.67,133.6,6.92931161]
[1768787412604,10.99954928,133.66,133.6,4.34190908]
[1768787412910,10.99954928,133.66,133.61,4.34190908]
[1768787413097,6.92931161,133.65,133.61,4.34190908]
[1768787413302,7.48278958,133.64,133.61,4.34190908]
[1768787415308,10.99954928,133.63,133.58,4.34190908]
[1768787415510,6.92931161,133.61,133.58,4.34190908]
[1768787416222,10.99954928,133.62,133.58,4.34190908]
[1768787416424,46.6600012,133.64,133.58,4.34190908]
[1768787416614,14.4132212,133.62,133.58,4.34190908]
[1768787418411,6.92931161,133.59,133.54,4.34190908]
[1768787419010,4.07023767,133.6,133.55,4.34190908]
[1768787419320,16.4,133.61,133.56,4.34190908]
[1768787419627,16.4,133.61,133.57,4.34190908]
[1768787420302,23.88459212,133.61,133.57,4.34190908]
[1768787420803,10.99954928,133.6,133.55,4.34190908]
[1768787421010,4.07023767,133.6,133.55,4.34190908]
[1768787421213,10.99954928,133.6,133.55,4.34190908]
[1768787421719,6.92931161,133.59,133.55,4.34190908]
[1768787421924,4.07023767,133.6,133.55,4.34190908]
[1768787421925,10.99954928,133.6,133.55,4.34190908]
[1768787422227,18.48505065,133.6,133.55,4.34190908]
[1768787423627,6.92931161,133.59,133.55,4.34190908]
[1768787424126,6.92931161,133.57,133.53,4.32169941]
[1768787424421,7.48672862,133.57,133.53,4.32169941]
[1768787425605,7.48672862,133.57,133.54,4.32169941]
[1768787426225,7.48630218,133.58,133.54,4.32169941]
[1768787428930,18.56216007,133.59,133.55,4.32169941]
[1768787429724,11.63284846,133.59,133.55,4.32169941]
[1768787430022,7.48523182,133.6,133.56,4.32169941]
[1768787431013,6.92931161,133.57,133.53,4.32169941]
[1768787431215,11.07635025,133.58,133.53,11.81063117]
[1768787431416,11.07635025,133.58,133.54,4.32169941]
[1768787431810,7.48671108,133.57,133.54,4.32169941]
[1768787432634,11.07635025,133.56,133.5,4.32169941]
[1768787432815,14.41602269,133.57,133.53,4.32169941]
[1768787433133,14.41124263,133.57,133.53,4.32169941]
[1768787433631,7.48671108,133.57,133.53,4.32169941]
[1768787434021,14.41124263,133.57,133.53,4.32169941]
[1768787434324,11.63374972,133.57,133.53,4.32169941]
[1768787436143,4.14703864,133.58,133.53,4.32169941]
[1768787437336,7.48671108,133.57,133.53,4.32169941]
[1768787438333,14.41124263,133.57,133.53,4.32169941]
[1768787438939,7.48671108,133.57,133.53,4.32169941]
[1768787439137,28.03320895,133.58,133.54,4.25828029]
[1768787439318,23.88617031,133.58,133.54,4.25828029]
[1768787439518,8.36003181,133.63,133.55,4.25828029]
[1768787439519,3.01594325,133.62,133.55,4.25828029]
[1768787439718,23.56298189,133.62,133.56,4.25828029]
[1768787440637,31.04689148,133.62,133.57,4.25828029]
[1768787440830,4.14703864,133.61,133.57,4.25828029]
[1768787441118,34.98043187,133.62,133.57,4.22828029]
[1768787441542,28.06064823,133.62,133.57,4.22828029]
[1768787441935,11.66026894,133.63,133.57,11.14806393]
[1768787442139,11.66026894,133.63,133.57,6.91978364]
[1768787442340,7.4835303,133.63,133.56,33.12495939]
[1768787442540,11.66026894,133.63,133.56,33.12495939]
[1768787442927,11.66026894,133.63,133.53,26.21133827]
[1768787443136,11.66026894,133.63,133.57,4.25828029]
[1768787443637,7.4835303,133.63,133.57,4.25828029]
[1768787444242,7.4835303,133.63,133.59,4.25828029]
[1768787444441,6.91978364,133.62,133.57,11.74476513]
[1768787444947,6.91978364,133.62,133.58,4.25828029]
[1768787445337,11.09652228,133.61,133.56,11.74534194]
[1768787445732,11.09652228,133.61,133.57,4.25828029]
[1768787447248,30.8042226,133.62,133.58,4.25828029]
[1768787447546,34.98096124,133.62,133.58,4.25828029]
[1768787447947,4.17673864,133.59,133.55,11.74595669]
[1768787448149,4.17673864,133.6,133.55,7.4876764]
[1768787448453,4.17673864,133.6,133.56,4.25828029]
[1768787448757,11.09652228,133.6,133.56,4.25828029]
[1768787448935,6.91978364,133.61,133.56,4.25828029]
[1768787449249,7.48502994,133.6,133.56,4.25828029]
[1768787449551,18.58155222,133.6,133.56,4.25828029]
[1768787449949,11.09652228,133.59,133.55,4.25828029]
[1768787450345,4.17673864,133.59,133.55,4.25828029]
[1768787450556,11.09652228,133.59,133.55,4.25828029]
[1768787450958,14.40481358,133.6,133.56,4.25828029]
[1768787451136,4.17673864,133.59,133.55,11.7460001]
[1768787451338,11.09652228,133.59,133.55,11.7460001]
[1768787451941,18.58221734,133.59,133.55,4.25828029]
[1768787452668,11.6624337,133.59,133.55,4.25828029]
[1768787452960,18.58221734,133.59,133.55,4.25828029]
[1768787453843,11.6624337,133.59,133.55,4.25828029]
[1768787454557,18.58221734,133.59,133.55,4.25828029]
[1768787456264,4.17673864,133.56,133.52,4.12673023]
[1768787456434,11.09652228,133.57,133.53,4.12673023]
[1768787456639,18.58363083,133.57,133.53,4.12673023]
[1768787458361,11.66384719,133.57,133.53,4.12673023]
[1768787459145,18.58363083,133.57,133.53,4.12673023]
[1768787459551,11.66384719,133.57,133.53,4.12673023]
[1768787461646,11.66414993,133.56,133.53,4.12673023]
[1768787461844,7.48741129,133.56,133.53,4.12673023]
[1768787462656,4.17673864,133.57,133.53,4.12673023]
[1768787463470,11.66356375,133.57,133.53,4.12673023]
[1768787463657,14.67933637,133.57,133.53,4.12673023]
[1768787464170,11.66356375,133.57,133.53,4.12673023]
[1768787464556,18.71312385,133.6,133.54,4.12673023]
[1768787464869,28.90748429,133.61,133.54,7.14250285]
[1768787465052,28.90748429,133.61,133.56,4.12673023]
[1768787465053,7.48519107,133.6,133.56,4.12673023]
[1768787466072,11.66192971,133.6,133.56,4.12673023]
[1768787466461,14.67770233,133.6,133.56,4.12673023]
[1768787466652,11.66192971,133.6,133.56,4.12673023]
[1768787467272,7.48519107,133.6,133.56,4.12673023]
[1768787467653,32.21542661,133.61,133.57,4.12673023]
[1768787467854,36.39216525,133.61,133.57,4.12673023]
[1768787468575,3.01577262,133.6,133.55,7.48763233]
[1768787468779,4.17673864,133.6,133.56,4.12673023]
[1768787469884,11.66230874,133.6,133.56,4.12673023]
[1768787470577,15.81541409,133.61,133.57,4.12673023]
[1768787471371,22.88304577,133.65,133.58,4.12673023]
[1768787471576,39.28304577,133.65,133.59,4.12673023]
[1768787471762,7.48278958,133.64,133.6,4.12673023]
[1768787471962,28.05909823,133.65,133.61,4.12673023]
[1768787472478,4.17673864,133.67,133.62,4.12673023]
[1768787472779,31.07384168,133.67,133.62,4.12673023]
[1768787473351,4.17673864,133.66,133.62,4.12673023]
[1768787474063,11.65868387,133.66,133.62,4.12673023]
[1768787474672,7.48194523,133.66,133.62,4.12673023]
[1768787477562,7.19251126,133.65,133.61,4.12673023]
[1768787478362,4.17673864,133.65,133.61,4.12673023]
[1768787478565,4.17673864,133.65,133.61,11.6111157]
[1768787478879,11.65906113,133.65,133.61,11.6111157]
[1768787479180,7.19251126,133.63,133.59,4.12673023]
[1768787479965,11.66092987,133.62,133.58,4.12673023]
[1768787480165,7.48419123,133.62,133.58,4.12673023]
[1768787480478,14.67670249,133.62,133.58,4.12673023]
[1768787481483,4.17673864,133.6,133.56,11.61390842]
[1768787482483,11.66182026,133.6,133.56,11.61390842]
[1768787482882,7.48508162,133.6,133.57,4.10359003]
[1768787484883,11.59227946,133.6,133.56,4.10359003]
[1768787485189,7.48508162,133.6,133.56,4.10359003]
[1768787485687,7.42508163,133.6,133.56,4.10359003]
[1768787485994,16.4,133.62,133.57,4.10359003]
[1768787486285,16.4,133.62,133.58,4.10359003]
[1768787486286,23.88392331,133.62,133.58,4.10359003]
[1768787486665,4.10719784,133.61,133.56,14.60659832]
[1768787486977,4.10719784,133.61,133.57,4.10359003]
[1768787488577,27.99112115,133.62,133.58,4.10359003]
[1768787490985,16.4,133.62,133.58,7.48590317]
[1768787491190,27.98998742,133.64,133.59,4.10359003]
[1768787492285,11.58998742,133.64,133.6,4.10359003]
[1768787492486,8.33074565,133.65,133.6,4.10359003]
[1768787492487,19.92031468,133.65,133.6,4.10359003]
[1768787492690,11.58956903,133.65,133.6,4.10359003]
[1768787493293,11.58909787,133.66,133.61,4.10359003]
[1768787493691,4.10719784,133.64,133.6,4.10359003]
[1768787493887,14.60148515,133.65,133.6,7.4849798]
[1768787494094,14.60148515,133.65,133.61,4.10359003]
[1768787496004,4.10719784,133.64,133.6,4.10359003]
[1768787497379,10.49428731,133.65,133.6,4.10359003]
[1768787497584,11.58982666,133.65,133.61,4.10359003]
[1768787498892,7.48262882,133.65,133.61,4.10359003]
[1768787499119,7.48262882,133.65,133.62,4.35142327]
[1768787499297,7.48188245,133.66,133.62,4.35142327]
[1768787500297,11.60231813,133.66,133.62,4.35142327]
[1768787500695,11.60074847,133.69,133.63,4.35142327]
[1768787500896,11.60074847,133.69,133.64,4.35142327]
[1768787501609,11.60074847,133.69,133.64,11.83414855]
[1768787501804,11.60074847,133.69,133.65,4.35142327]
[1768787503606,4.12043568,133.65,133.6,11.83645321]
[1768787503792,20.50043568,133.67,133.61,4.35142327]
[1768787504194,4.12043568,133.66,133.61,4.35142327]
[1768787504494,3.01165849,133.68,133.62,7.36308176]
[1768787504495,4.12043568,133.68,133.62,7.36308176]
[1768787504700,20.50043568,133.68,133.63,4.35142327]
[1768787505616,12.65118133,133.7,133.65,4.35142327]
[1768787505789,32.39035154,133.7,133.66,4.35142327]
[1768787508507,24.91074565,133.7,133.66,11.8328673]
[1768787508712,8.53074565,133.7,133.67,4.35142327]
[1768787509309,8.53074565,133.7,133.66,4.35142327]
[1768787509310,20.13082718,133.7,133.66,4.35142327]
[1768787509822,20.13082718,133.7,133.66,11.83294031]
[1768787509991,8.53074565,133.7,133.67,4.35142327]
[1768787510402,0.2,133.72,133.7,4.35142327]
[1768787511211,0.2,133.72,133.69,4.35142327]
[1768787511589,0.2,133.73,133.7,4.35142327]
[1768787511796,0.2,133.73,133.71,11.82993691]
[1768787511990,0.2,133.73,133.71,11.83020676]
[1768787512912,0.2,133.73,133.71,7.47878349]
[1768787513212,0.2,133.73,133.7,11.53429207]
[1768787513402,0.2,133.73,133.71,11.53380727]
[1768787513612,0.2,133.73,133.71,7.4787781]
[1768787514101,4.38162231,133.73,133.69,7.06668766]
[1768787514304,4.38162231,133.73,133.7,7.4793967]
[1768787514509,0.2,133.73,133.7,11.53442587]
[1768787514713,0.2,133.73,133.7,14.54608436]
[1768787515011,0.2,133.73,133.7,11.53442587]
[1768787516408,4.38162231,133.73,133.69,11.53482754]
[1768787516813,4.38162231,133.73,133.7,7.47933881]
[1768787517199,4.38162231,133.73,133.69,14.54650774]
[1768787517405,4.38162231,133.73,133.69,11.53484925]
[1768787517815,0.2,133.73,133.7,4.05502917]
[1768787518017,0.2,133.73,133.71,7.06668766]
[1768787519917,0.2,133.73,133.71,14.54533312]
[1768787520296,4.38162231,133.73,133.7,7.47897395]
[1768787520504,4.18162231,133.71,133.67,7.06668766]
[1768787520712,4.18162231,133.71,133.67,4.05502917]
[1768787520900,4.18162231,133.71,133.66,14.54798351]
[1768787521099,4.18162231,133.71,133.67,7.48109082]
[1768787521295,4.18162231,133.71,133.66,11.53669845]
[1768787521518,4.18162231,133.69,133.64,4.05502917]
[1768787522220,4.18162231,133.68,133.64,4.05502917]
[1768787522823,4.18162231,133.68,133.64,14.54926287]
[1768787523020,7.47987211,133.7,133.64,10.4942337]
[1768787523221,4.18162231,133.71,133.67,7.06668766]
[1768787523419,11.66066617,133.71,133.67,7.06668766]
[1768787523612,4.18162231,133.71,133.67,7.06668766]
[1768787523916,11.85942235,133.73,133.68,7.06668766]
[1768787524123,0.2,133.73,133.7,7.47943156]
[1768787524310,0.2,133.73,133.71,4.05502917]
[1768787524721,0.2,133.73,133.7,10.49109005]
[1768787524922,4.38162231,133.73,133.69,14.54648935]
[1768787525102,4.38162231,133.73,133.69,11.53483086]
[1768787525722,4.38162231,133.73,133.69,14.54648935]
[1768787526504,0.2,133.73,133.7,7.06668766]
[1768787526899,4.38162231,133.73,133.7,3.01165849]
[1768787527103,4.38162231,133.73,133.69,33.24646691]
[1768787528506,0.2,133.73,133.71,7.47887218]
[1768787529206,1e-08,133.73,133.71,14.54555984]
[1768787529704,1e-08,133.73,133.71,11.53390135]
[1768787530121,1e-08,133.73,133.71,14.54555984]
[1768787530326,1e-08,133.73,133.71,7.47887218]
[1768787531025,0.2,133.76,133.72,7.06668766]
[1768787531322,0.2,133.76,133.73,4.05502917]
[1768787531503,4.38162231,133.76,133.72,4.05502917]
[1768787531898,1e-08,133.76,133.73,4.05502917]
[1768787532118,4.18162232,133.76,133.71,7.47887218]
[1768787532320,4.18162231,133.75,133.7,7.47933573]
[1768787532518,4.18162231,133.74,133.7,7.47933573]
[1768787533107,4.18162231,133.74,133.69,26.17930651]
[1768787533308,4.18162231,133.73,133.69,7.47999102]
[1768787533509,4.18162231,133.73,133.69,11.53502019]
[1768787533704,4.18162231,133.73,133.69,7.47999102]
[1768787533930,4.18162231,133.73,133.68,11.53557153]
[1768787534107,4.18162231,133.73,133.68,14.54723002]
[1768787534610,4.18162231,133.73,133.68,7.48054236]
[1768787534810,4.18162231,133.73,133.68,14.54723002]
[1768787535903,4.18162231,133.73,133.69,3.01165849]
[1768787536218,4.18162231,133.74,133.7,7.06668766]
[1768787536727,4.18162231,133.74,133.68,30.23694795]
[1768787537022,4.18162231,133.74,133.69,7.47984495]
[1768787537023,4.18162231,133.73,133.69,7.47984495]
[1768787537525,4.18162231,133.73,133.68,10.49203779]
[1768787537916,4.18162231,133.72,133.66,10.49284914]
[1768787538515,4.18162231,133.72,133.67,7.48104486]
[1768787539129,4.18162231,133.71,133.67,7.48104486]
[1768787539518,4.18162231,133.71,133.67,10.49270335]
[1768787540420,20.56162231,133.72,133.68,7.06668766]
[1768787540627,20.56162231,133.72,133.67,14.54773252]
[1768787540829,4.18162231,133.71,133.67,14.54773252]
[1768787541029,4.18162231,133.71,133.67,11.53607403]
[1768787541213,4.18162231,133.71,133.67,14.54773252]
[1768787542718,4.18162231,133.71,133.68,10.49213045]
[1768787543233,4.18162231,133.71,133.68,7.48047196]
[1768787544428,20.71535185,133.72,133.68,14.66878321]
[1768787544621,16.38,133.72,133.69,7.18831125]
[1768787544825,11.81154937,133.76,133.72,4.17665276]
[1768787545018,4.33535186,133.76,133.73,3.01165849]
[1768787545329,4.33535186,133.76,133.72,3.01165849]
[1768787545731,4.33535186,133.76,133.72,7.18831125]
[1768787545925,4.33535185,133.75,133.71,7.18831125]
[1768787546649,4.33535185,133.75,133.72,7.47831289]
[1768787547524,4.33535185,133.75,133.72,10.48997138]
[1768787547720,4.33535186,133.76,133.72,14.66662414]
[1768787548230,4.33535185,133.75,133.72,10.48997138]
[1768787549433,4.33535185,133.74,133.71,3.01165849]
[1768787549633,4.33535185,133.74,133.69,7.47992714]
[1768787550021,4.33535185,133.74,133.69,10.49158563]
[1768787550645,4.33535185,133.74,133.69,7.47992714]
[1768787551026,11.81231085,133.75,133.71,3.01165849]
[1768787551239,4.33535185,133.75,133.73,3.01165849]
[1768787551440,20.71535186,133.76,133.73,3.01165849]
[1768787552552,20.71535186,133.76,133.73,10.48939511]
[1768787552838,16.38000001,133.76,133.73,14.66604787]
[1768787553019,16.38000001,133.76,133.73,14.6599062]
[1768787553224,1e-08,133.76,133.73,14.6599062]
[1768787554844,0.2,133.77,133.75,7.18216958]
[1768787555143,0.2,133.78,133.76,7.18216958]
[1768787555554,4.33535185,133.8,133.77,3.00551682]
[1768787555855,20.91535185,133.81,133.77,3.00551682]
[1768787556053,28.38863957,133.81,133.77,10.48086389]
[1768787556442,4.33535185,133.8,133.77,7.47534707]
[1768787556644,4.33535185,133.8,133.77,10.48086389]
[1768787556847,4.33535185,133.8,133.77,7.47534707]
[1768787557053,4.33535185,133.8,133.76,10.48142944]
[1768787557554,4.33535185,133.8,133.76,14.6580822]
[1768787558443,4.29304506,133.79,133.73,7.47740926]
[1768787558644,4.29304506,133.77,133.73,7.47740926]
[1768787558948,4.29304506,133.77,133.74,10.4826784]
[1768787559175,16.38,133.78,133.76,7.47585599]
[1768787559355,7.6733543,133.81,133.77,3.00551682]
[1768787559356,11.96639936,133.81,133.77,3.00551682]
[1768787559869,4.49304506,133.81,133.77,7.32355153]
[1768787560437,4.49304506,133.81,133.77,14.79866729]
[1768787562145,0.2,133.81,133.77,33.48746148]
[1768787563567,4.49304506,133.81,133.77,33.48746148]
[1768787563858,0.2,133.81,133.78,7.32355153]
[1768787564057,0.2,133.81,133.79,4.31803471]
[1768787564463,0.2,133.81,133.78,7.32355153]
[1768787564668,4.49304506,133.81,133.75,4.31803471]
[1768787564838,4.29304506,133.8,133.75,4.31803471]
[1768787565171,4.29304506,133.79,133.75,7.47614038]
[1768787565347,4.29304506,133.79,133.74,7.47702359]
[1768787565537,4.29304506,133.78,133.74,11.7950583]
[1768787565737,4.29304506,133.78,133.74,7.47702359]
[1768787565935,7.47489629,133.79,133.73,7.47768597]
[1768787565936,4.29304506,133.77,133.73,7.47768597]
[1768787569266,4.29304506,133.77,133.73,11.79572068]
[1768787569467,4.23471045,133.77,133.73,11.79572068]
[1768787569647,7.47510799,133.78,133.73,11.79572068]
[1768787569956,7.47440017,133.79,133.74,11.79504074]
[1768787570350,7.47440017,133.79,133.74,7.47700603]
[1768787571067,26.16040061,133.79,133.73,11.79555122]
[1768787571266,29.16591743,133.79,133.73,11.79555122]
[1768787571463,4.29304506,133.78,133.73,11.79555122]
[1768787571649,4.29304506,133.78,133.73,7.47751651]
[1768787571852,4.29304506,133.77,133.73,7.47751651]
[1768787572962,4.29304506,133.77,133.73,14.75995345]
[1768787573357,4.23305655,133.77,133.73,14.75995345]
[1768787573562,7.47450513,133.79,133.74,4.27692012]
[1768787574573,7.47450513,133.79,133.74,11.7535785]
[1768787575174,10.48002195,133.79,133.74,11.7535785]
[1768787575367,4.35051182,133.78,133.74,7.47665838]
[1768787575853,4.35051182,133.77,133.73,11.7545232]
[1768787578372,0.2,133.82,133.75,4.27692012]
[1768787578572,7.67302645,133.82,133.77,7.28243694]
[1768787578773,4.35051182,133.81,133.77,7.28243694]
[1768787579163,4.35051182,133.81,133.77,4.27692012]
[1768787579364,4.35051182,133.81,133.76,4.27692012]
[1768787579574,4.35051182,133.81,133.78,7.47495888]
[1768787580191,4.35051182,133.81,133.77,11.75226948]
[1768787580476,4.35051182,133.81,133.77,10.48086618]
[1768787580652,4.35051182,133.81,133.77,14.7577863]
[1768787581055,0.2,133.82,133.78,7.28243694]
[1768787581574,4.55051182,133.82,133.79,7.47440017]
[1768787582384,0.2,133.84,133.81,7.28243694]
[1768787582554,0.2,133.84,133.82,3.00551682]
[1768787583054,4.55051182,133.86,133.83,7.28243694]
[1768787583055,0.2,133.86,133.83,7.28243694]
[1768787583254,0.2,133.86,133.84,3.00551682]
[1768787583757,1e-08,133.86,133.84,10.47680885]
[1768787583961,16.58,133.88,133.85,7.28243694]
[1768787584178,16.58,133.88,133.85,3.00551682]
[1768787584471,0.2,133.88,133.85,3.00551682]
[1768787584677,0.2,133.88,133.86,3.00551682]
[1768787584870,0.2,133.88,133.86,6.88753916]
[1768787585073,0.2,133.88,133.84,37.31477103]
[1768787585267,0.2,133.88,133.85,6.88753916]
[1768787586378,4.55051182,133.88,133.84,14.35883119]
[1768787586756,0.2,133.88,133.86,6.88753916]
[1768787587277,0.2,133.88,133.87,6.88753916]
[1768787588001,0.2,133.88,133.86,6.88753916]
[1768787588279,0.2,133.88,133.87,6.88753916]
[1768787588487,0.2,133.88,133.87,14.35747267]
[1768787588862,1e-08,133.88,133.87,14.35747267]
[1768787589473,0.2,133.9,133.87,18.63439279]
[1768787589676,0.2,133.9,133.88,6.88753916]
[1768787590094,0.2,133.91,133.89,4.27692012]
[1768787590282,0.2,133.91,133.89,14.35592114]
[1768787591693,0.2,133.91,133.89,7.46838198]
[1768787591888,0.2,133.91,133.89,14.35592114]
[1768787592360,0.2,133.91,133.9,14.35579905]
[1768787592558,0.2,133.95,133.92,4.27692012]
[1768787592971,0.2,133.95,133.92,11.16445928]
[1768787593175,0.2,133.95,133.92,6.88753916]
[1768787593383,4.55051182,133.95,133.92,6.88753916]
[1768787593791,0.2,133.95,133.92,6.88753916]
[1768787595080,0.2,133.95,133.92,14.35439932]
[1768787595486,0.2,133.95,133.93,6.88753916]
[1768787595682,0.2,133.95,133.93,11.16445928]
[1768787595882,1e-08,133.95,133.93,4.27692012]
[1768787596183,1e-08,133.95,133.94,6.88753916]
[1768787596572,0.2,133.98,133.95,4.27692012]
[1768787596899,0.2,133.98,133.97,6.88753916]
[1768787597087,0.2,133.98,133.97,6.85753918]
[1768787597288,0.2,133.98,133.96,6.88753916]
[1768787597592,4.55051182,134.0,133.96,14.35240552]
[1768787597893,4.55051182,134.0,133.94,18.66409177]
[1768787598101,4.55051182,134.0,133.96,14.35236012]
[1768787599193,4.35051182,133.99,133.94,4.27692012]
[1768787599392,4.35051182,133.99,133.93,7.46645847]
[1768787599572,4.35051182,133.99,133.93,14.35399763]
[1768787599774,4.35051182,133.99,133.93,18.63091775]
[1768787600085,4.35051182,133.97,133.9,18.67018963]
[1768787600393,4.35051182,133.96,133.9,18.67018963]
[1768787600602,4.35051182,133.96,133.91,7.4675497]
[1768787601186,4.35051182,133.95,133.91,7.4675497]
[1768787601490,4.35051182,133.95,133.9,11.74514451]
[1768787601689,4.35051182,133.95,133.9,18.63268367]
[1768787603608,4.20523333,133.94,133.9,18.63268367]
[1768787604405,4.20523333,133.94,133.9,11.74514451]
[1768787604599,4.20523333,133.96,133.91,4.25193005]
[1768787604998,4.20523333,133.96,133.91,11.13946921]
[1768787605516,4.20523333,133.95,133.91,18.60705644]
[1768787605994,4.20523333,133.95,133.91,14.35512639]
[1768787606402,4.20523333,133.95,133.9,18.60758709]
[1768787606610,4.20523333,133.96,133.92,11.13946921]
[1768787607028,4.20523333,133.96,133.92,7.24914586]
[1768787607995,4.20523333,133.96,133.92,14.71601088]
[1768787608191,4.20523333,133.95,133.92,7.46686502]
[1768787608404,4.20523333,133.95,133.9,2.99721581]
[1768787608810,4.20523333,133.95,133.89,7.24914586]
[1768787609116,4.20523333,133.95,133.9,7.46789018]
[1768787609917,4.20523333,133.95,133.89,14.71754798]
[1768787610114,4.20523333,133.94,133.9,7.46807848]
[1768787610618,4.20523333,133.94,133.89,14.7177921]
[1768787611813,4.20523333,133.94,133.81,100.05253087]
[1768787611814,7.20244914,133.9,133.84,2.99721581]
[1768787612018,4.20523333,133.89,133.84,7.47113532]
[1768787612220,4.20523333,133.88,133.84,7.47113532]
[1768787613598,4.20523333,133.87,133.81,6.89103668]
[1768787613805,4.20523333,133.86,133.8,29.82688531]
[1768787614294,4.20523333,133.86,133.81,7.4729275]
[1768787615601,4.20523333,133.85,133.81,7.4729275]
[1768787615802,4.20523333,133.84,133.78,22.93888524]
[1768787616001,4.20523333,133.84,133.79,11.14296673]
[1768787616424,4.20523333,133.84,133.8,6.89103668]
[1768787616824,4.20523333,133.84,133.8,14.36486706]
[1768787617227,4.20523333,133.83,133.79,14.36521673]
[1768787617424,4.20523333,133.83,133.75,16.36]
[1768787617425,4.20523333,133.82,133.76,4.25193005]
[1768787617719,4.20523333,133.81,133.76,7.4758761]
[1768787618105,4.20523333,133.81,133.76,6.89103668]
[1768787618305,4.20523333,133.81,133.77,11.29013602]
[1768787618501,4.20523333,133.81,133.77,6.89103668]
[1768787619026,4.20523333,133.81,133.78,7.47458522]
[1768787621230,4.20523333,133.81,133.77,6.89103668]
[1768787621427,4.20523333,133.81,133.77,7.47542455]
[1768787621726,4.20523333,133.81,133.77,14.36646123]
[1768787622534,4.20523333,133.81,133.77,7.47542455]
[1768787622713,4.20523333,133.81,133.77,14.36646123]
[1768787622911,11.67860794,133.81,133.76,11.87498103]
[1768787623235,4.47583051,133.8,133.75,11.8753703]
[1768787623526,4.47583051,133.8,133.75,18.76640698]
[1768787623732,4.47583051,133.8,133.76,7.47604315]
[1768787624109,4.47583051,133.8,133.75,18.76668269]
[1768787624530,4.47583051,133.8,133.75,11.87564601]
[1768787624708,4.47583051,133.8,133.75,18.76668269]
[1768787625105,4.47583051,133.8,133.76,7.47604234]
[1768787625929,4.47583051,133.79,133.73,27.65013602]
[1768787626138,4.47583051,133.79,133.74,11.29013602]
[1768787626767,4.47583051,133.79,133.75,7.47660893]
[1768787627036,4.47583051,133.79,133.75,18.76674495]
[1768787627212,4.47583051,133.79,133.75,11.87570827]
[1768787627407,4.47583051,133.79,133.75,18.76674495]
[1768787630540,4.47583051,133.81,133.76,4.39909934]
[1768787630712,4.47583051,133.81,133.77,4.39909934]
[1768787631033,4.47583051,133.81,133.77,11.29013602]
[1768787631735,4.47583051,133.81,133.77,18.76525957]
[1768787632633,4.486716,133.83,133.8,6.89103668]
[1768787633021,4.486716,133.84,133.8,11.26262485]
[1768787633738,4.486716,133.84,133.79,7.47440017]
[1768787633739,4.486716,133.83,133.79,7.47440017]
[1768787634042,4.486716,133.83,133.79,18.73702502]
[1768787634536,4.486716,133.83,133.71,4.47158817]
[1768787634537,4.486716,133.79,133.71,4.47158817]
[1768787634724,6.89103668,133.75,133.71,0.1]
[1768787635033,3.00824341,133.74,133.71,0.1]
[1768787635426,19.36824341,133.75,133.71,0.1]
[1768787635827,7.47719455,133.74,133.71,0.1]
[1768787636227,10.48543796,133.74,133.71,0.1]
[1768787636537,10.48543796,133.74,133.69,0.2]
[1768787636739,4.486716,133.73,133.69,0.2]
[1768787637540,4.486716,133.73,133.69,12.05136268]
[1768787638423,4.486716,133.73,133.69,18.95829602]
[1768787638823,4.486716,133.73,133.69,12.05136268]
[1768787639530,4.426716,133.73,133.69,12.05136268]
[1768787640637,23.83679578,133.75,133.71,4.37158817]
[1768787641039,23.83679578,133.75,133.7,7.47936207]
[1768787641232,30.74372912,133.75,133.69,12.05143269]
[1768787641438,4.486716,133.74,133.69,12.05143269]
[1768787641639,4.486716,133.72,133.69,0.2]
[1768787641846,4.486716,133.71,133.69,0.2]
[1768787642225,42.52838456,133.75,133.69,0.2]
[1768787642226,4.486716,133.73,133.69,4.57158817]
[1768787642842,11.96449254,133.73,133.69,4.57158817]
[1768787643041,11.96449254,133.73,133.69,12.05152111]
[1768787644345,28.32351993,133.75,133.7,4.37158817]
[1768787644643,4.486716,133.74,133.69,12.05152111]
[1768787644842,4.486716,133.74,133.7,4.37158817]
[1768787645931,23.83680393,133.75,133.7,4.37158817]
[1768787646138,16.36,133.75,133.71,4.37158817]
[1768787646644,7.47454878,133.79,133.74,4.37158817]
[1768787646952,7.47454878,133.79,133.74,7.47703821]
[1768787646953,23.85454878,133.79,133.74,7.47703821]
[1768787647130,11.96126478,133.79,133.75,4.37158817]